bitfinex-derivatives/quotes_BTCF0:USTF0_20251025
["timestamp","ask_amount","ask_price","bid_price","bid_amount"]
[1761433777339,0.04427844,111670.0,111660.0,1.23358769]
[1761433778737,0.04427844,111670.0,111660.0,0.91970769]
[1761433778939,0.04427844,111670.0,111660.0,1.23358769]
[1761433782349,0.04427844,111670.0,111660.0,0.56015691]
[1761433782548,0.04427844,111670.0,111660.0,1.28175691]
[1761433783149,0.06749844,111670.0,111660.0,1.28175691]
[1761433783748,0.04427844,111670.0,111660.0,1.28175691]
[1761433785652,0.04427844,111670.0,111660.0,0.56015691]
[1761433785952,0.04427844,111670.0,111660.0,1.28175691]
[1761433786647,0.04427844,111670.0,111660.0,0.56015691]
[1761433786849,0.04427844,111670.0,111660.0,1.28175691]
[1761433792062,0.06749844,111670.0,111660.0,1.28175691]
[1761433793666,0.06749844,111670.0,111660.0,0.56015691]
[1761433793862,0.06749844,111670.0,111660.0,1.28175691]
[1761433794365,0.06749844,111670.0,111660.0,0.56015691]
[1761433794565,0.06749844,111670.0,111660.0,1.28175691]
[1761433795563,0.06749844,111670.0,111660.0,0.56015691]
[1761433795865,0.04427844,111670.0,111660.0,1.28175691]
[1761433797063,0.04427844,111670.0,111660.0,0.56015691]
[1761433797362,0.04427844,111670.0,111660.0,1.28175691]
[1761433798654,0.04427844,111670.0,111660.0,1.29933592]
[1761433798860,0.06749844,111670.0,111660.0,0.98545592]
[1761433799061,0.26337519,111670.0,111660.0,1.29933592]
[1761433799261,0.23918514,111670.0,111660.0,1.2511667]
[1761433801161,0.23918514,111670.0,111660.0,0.9372867]
[1761433801366,0.23918514,111670.0,111660.0,1.2511667]
[1761433802266,0.23918514,111670.0,111660.0,0.9372867]
[1761433802468,0.23918514,111670.0,111660.0,1.2511667]
[1761433805974,0.239101,111670.0,111660.0,1.2511667]
[1761433806569,0.239101,111670.0,111660.0,0.77847]
[1761433806771,0.239101,111670.0,111660.0,1.07848]
[1761433807275,0.239101,111670.0,111660.0,1.09132]
[1761433807673,0.26327978,111670.0,111660.0,1.09132]
[1761433808270,0.239101,111670.0,111660.0,1.09132]
[1761433809574,0.239101,111670.0,111660.0,0.77744]
[1761433809575,0.26327978,111670.0,111660.0,0.77744]
[1761433809777,0.26327978,111670.0,111660.0,1.09132]
[1761433810264,0.26327978,111670.0,111660.0,0.77744]
[1761433810468,0.26327978,111670.0,111660.0,1.09132]
[1761433810978,0.26327978,111670.0,111660.0,0.77744]
[1761433811472,0.26327978,111670.0,111660.0,1.09132]
[1761433811773,0.26327978,111670.0,111660.0,0.77744]
[1761433812078,0.26327978,111670.0,111660.0,1.09132]
[1761433812680,0.26327978,111670.0,111660.0,0.73052]
[1761433814377,0.239101,111670.0,111660.0,0.73052]
[1761433815183,0.239101,111670.0,111660.0,0.36972]
[1761433815373,0.239101,111670.0,111660.0,0.73052]
[1761433816082,0.239101,111670.0,111660.0,0.36972]
[1761433816379,0.239101,111670.0,111660.0,0.73052]
[1761433819185,0.226231,111670.0,111660.0,0.73052]
[1761433823186,0.238841,111670.0,111660.0,0.36972]
[1761433823386,0.26301978,111670.0,111660.0,0.36972]
[1761433823684,0.26301978,111670.0,111660.0,0.35688]
[1761433823885,0.29524098,111670.0,111660.0,0.043]
[1761433824086,0.29524098,111670.0,111660.0,0.35688]
[1761433824291,0.2710622,111670.0,111660.0,0.35688]
[1761433825293,0.2952285,111670.0,111660.0,0.35688]
[1761433830094,0.6560285,111670.0,111660.0,0.35688]
[1761433830295,0.6318622,111670.0,111660.0,0.35688]
[1761433830497,0.65601948,111670.0,111660.0,0.35688]
[1761433831095,0.29521948,111670.0,111660.0,0.35688]
[1761433831296,0.65601948,111670.0,111660.0,0.35688]
[1761433837199,0.65601948,111670.0,111660.0,0.043]
[1761433837499,0.70020598,111670.0,111660.0,0.35688]
[1761433838692,0.70893564,111670.0,111660.0,0.35688]
[1761433839196,0.70893564,111670.0,111660.0,0.043]
[1761433839604,0.70020598,111670.0,111660.0,0.043]
[1761433847901,0.33940598,111670.0,111660.0,0.043]
[1761433848101,0.70020598,111670.0,111660.0,0.043]
[1761433848802,0.33940598,111670.0,111660.0,0.043]
[1761433849102,0.70020598,111670.0,111660.0,0.043]
[1761433850399,0.33940598,111670.0,111660.0,0.043]
[1761433850601,0.70020598,111670.0,111660.0,0.043]
[1761433853306,0.66798478,111670.0,111660.0,0.043]
[1761433854000,0.30718478,111670.0,111660.0,0.043]
[1761433854306,0.66798478,111670.0,111660.0,0.043]
[1761433856203,0.66798478,111670.0,111660.0,0.02193]
[1761433857206,0.058,111660.0,111650.0,0.35885]
[1761433857407,0.27322907,111660.0,111650.0,0.35885]
[1761433857608,0.29489337,111660.0,111650.0,0.04493]
[1761433858510,0.29489337,111660.0,111650.0,0.04693]
[1761433860710,0.27731855,111660.0,111650.0,0.04693]
[1761433862206,0.63811855,111660.0,111650.0,0.04693]
[1761433862501,0.63811855,111660.0,111650.0,0.02446]
[1761433863203,0.63811855,111660.0,111650.0,0.002]
[1761433863605,0.62394182,111660.0,111650.0,0.002]
[1761433866814,0.62397374,111660.0,111650.0,0.002]
[1761433868114,0.93789374,111660.0,111650.0,0.002]
[1761433870807,0.57709374,111660.0,111650.0,0.002]
[1761433871008,0.93789374,111660.0,111650.0,0.002]
[1761433872913,0.57709374,111660.0,111650.0,0.002]
[1761433873115,0.93789374,111660.0,111650.0,0.002]
[1761433873320,0.98623752,111660.0,111650.0,0.002]
[1761433874911,0.98623752,111660.0,111650.0,0.02318]
[1761433876222,0.62543752,111660.0,111650.0,0.02318]
[1761433876424,0.98623752,111660.0,111650.0,0.02318]
[1761433877322,0.98623752,111660.0,111650.0,0.04483]
[1761433878933,0.62543752,111660.0,111650.0,0.04483]
[1761433879222,0.98623752,111660.0,111650.0,0.04483]
[1761433880424,0.98623752,111660.0,111650.0,0.02318]
[1761433881025,0.62543752,111660.0,111650.0,0.02318]
[1761433881209,0.98623752,111660.0,111650.0,0.02318]
[1761433881409,0.62543752,111660.0,111650.0,0.02318]
[1761433881611,0.98623752,111660.0,111650.0,0.02318]
[1761433882324,0.62543752,111660.0,111650.0,0.02318]
[1761433882623,0.98623752,111660.0,111650.0,0.02318]
[1761433888924,0.62543752,111660.0,111650.0,0.02318]
[1761433889330,0.98623752,111660.0,111650.0,0.02318]
[1761433894334,0.98623752,111660.0,111650.0,0.002]
[1761433899144,0.84499564,111660.0,111650.0,0.002]
[1761433899344,0.98623752,111660.0,111650.0,0.02438]
[1761433899738,0.98623752,111660.0,111650.0,0.04635]
[1761433900237,0.67231752,111660.0,111650.0,0.04635]
[1761433903348,0.31151752,111660.0,111650.0,0.04635]
[1761433903539,0.67231752,111660.0,111650.0,0.04635]
[1761433904644,0.31151752,111660.0,111650.0,0.04635]
[1761433904846,0.67231752,111660.0,111650.0,0.04635]
[1761433905250,0.31151752,111660.0,111650.0,0.04635]
[1761433905747,0.67231752,111660.0,111650.0,0.04635]
[1761433906548,0.62397374,111660.0,111650.0,0.04635]
[1761433906950,0.26317374,111660.0,111650.0,0.04635]
[1761433907142,0.62397374,111660.0,111650.0,0.04635]
[1761433910658,0.26317374,111660.0,111650.0,0.04635]
[1761433910857,0.62397374,111660.0,111650.0,0.04635]
[1761433911156,0.26317374,111660.0,111650.0,0.04635]
[1761433911357,0.62397374,111660.0,111650.0,0.04635]
[1761433911854,0.26317374,111660.0,111650.0,0.04635]
[1761433912057,0.62397374,111660.0,111650.0,0.04635]
[1761433914661,0.26317374,111660.0,111650.0,0.04635]
[1761433914962,0.62397374,111660.0,111650.0,0.04635]
[1761433916063,0.67231752,111660.0,111650.0,0.04635]
[1761433917061,0.31151752,111660.0,111650.0,0.04635]
[1761433917363,0.67231752,111660.0,111650.0,0.04635]
[1761433918363,0.31151752,111660.0,111650.0,0.04635]
[1761433918566,0.67231752,111660.0,111650.0,0.04635]
[1761433919063,0.31151752,111660.0,111650.0,0.04635]
[1761433919265,0.67231752,111660.0,111650.0,0.04635]
[1761433920559,0.53107564,111660.0,111650.0,0.04635]
[1761433920759,0.52107564,111660.0,111650.0,0.04635]
[1761433920962,0.83888712,111660.0,111650.0,0.04635]
[1761433924068,0.67998138,111660.0,111650.0,0.04635]
[1761433925069,0.31918138,111660.0,111650.0,0.04635]
[1761433925271,0.67998138,111660.0,111650.0,0.04635]
[1761433926069,0.31918138,111660.0,111650.0,0.04635]
[1761433928976,0.31918138,111660.0,111650.0,0.02402]
[1761433932978,0.2708376,111660.0,111650.0,0.02402]
[1761433935378,0.2708376,111660.0,111650.0,0.002]
[1761433935580,0.2708376,111660.0,111650.0,0.02402]
[1761433940579,0.31918138,111660.0,111650.0,0.02402]
[1761433944376,0.2708376,111660.0,111650.0,0.04674]
[1761433957684,0.2708376,111660.0,111650.0,0.1362956]
[1761433973588,0.10388496,111660.0,111650.0,0.66894134]
[1761433973795,0.09022496,111660.0,111650.0,0.66894134]
[1761433975696,0.06603622,111660.0,111650.0,0.66894134]
[1761433975891,0.02169622,111660.0,111650.0,1.26894134]
[1761433976195,0.02169622,111660.0,111650.0,0.71711056]
[1761433977500,0.02169622,111660.0,111650.0,1.07791056]
[1761433979594,0.02169622,111660.0,111650.0,0.35631056]
[1761433979790,0.02169622,111660.0,111650.0,1.07791056]
[1761433980893,0.24030448,111680.0,111670.0,0.05787]
[1761433981092,0.26191286,111680.0,111670.0,0.89141574]
[1761433981294,0.26191286,111680.0,111670.0,0.73251]
[1761433982696,0.10300712,111680.0,111670.0,0.73251]
[1761433986394,0.10293229,111680.0,111670.0,0.73251]
[1761433991800,0.10293229,111680.0,111670.0,0.8220496]
[1761433992702,0.09006229,111680.0,111670.0,0.8220496]
[1761433993600,0.09006229,111680.0,111670.0,0.73251]
[1761433996510,0.09006229,111680.0,111670.0,0.37171]
[1761433996708,0.09006229,111680.0,111670.0,0.73251]
[1761434001919,0.09006229,111680.0,111670.0,0.37171]
[1761434002111,0.09006229,111680.0,111670.0,0.73251]
[1761434003014,0.09006229,111680.0,111670.0,0.37171]
[1761434003210,0.12229793,111680.0,111670.0,0.73251]
[1761434005617,0.12229793,111680.0,111670.0,0.37171]
[1761434005810,0.12229793,111680.0,111670.0,0.73251]
[1761434006120,0.12229793,111680.0,111670.0,0.37171]
[1761434006315,0.12229793,111680.0,111670.0,0.73251]
[1761434008422,0.09816649,111680.0,111670.0,0.37171]
[1761434008921,0.09816649,111680.0,111670.0,0.73251]
[1761434011421,0.09816649,111680.0,111670.0,0.37171]
[1761434011627,0.07506649,111680.0,111670.0,0.73251]
[1761434011827,0.05382649,111680.0,111670.0,0.73251]
[1761434012426,0.07523649,111680.0,111670.0,0.73251]
[1761434014532,0.05382649,111680.0,111670.0,0.73251]
[1761434016823,0.05382649,111680.0,111670.0,0.8220495]
[1761434017028,0.05642034,111680.0,111670.0,0.96322819]
[1761434017228,0.04577555,111680.0,111670.0,0.96322819]
[1761434017430,0.04577555,111680.0,111670.0,0.8220495]
[1761434029039,0.04577555,111680.0,111670.0,0.73251]
[1761434029240,0.06790555,111680.0,111670.0,0.73251]
[1761434033246,0.06790555,111680.0,111670.0,0.37171]
[1761434033542,0.06790555,111680.0,111670.0,0.73251]
[1761434033839,0.06790555,111680.0,111670.0,0.8220495]
[1761434037549,0.06790555,111680.0,111670.0,0.4612495]
[1761434037742,0.06790555,111680.0,111670.0,0.8220495]
[1761434039148,0.06790555,111680.0,111670.0,0.4612495]
[1761434039448,0.06790555,111680.0,111670.0,0.8220495]
[1761434039948,0.06790555,111680.0,111670.0,0.73251]
[1761434041748,0.06790555,111680.0,111670.0,0.37171]
[1761434042049,0.06790555,111680.0,111670.0,0.73251]
[1761434042643,0.06790555,111680.0,111670.0,0.89132391]
[1761434042948,0.22671946,111680.0,111670.0,0.89132391]
[1761434043351,0.22671946,111680.0,111670.0,0.53052391]
[1761434043549,0.22671946,111680.0,111670.0,0.89132391]
[1761434044751,0.22671946,111680.0,111670.0,0.53052391]
[1761434044948,0.22671946,111680.0,111670.0,0.89132391]
[1761434046255,0.24835946,111680.0,111670.0,0.89132391]
[1761434046648,0.24839753,111680.0,111670.0,0.89132391]
[1761434047944,0.24839753,111680.0,111670.0,0.53052391]
[1761434048149,0.24839753,111680.0,111670.0,0.89132391]
[1761434048653,0.24839753,111680.0,111670.0,0.53052391]
[1761434049055,0.24839753,111680.0,111670.0,0.89132391]
[1761434049352,0.28063317,111680.0,111670.0,0.89132391]
[1761434049653,0.28063317,111680.0,111670.0,0.53052391]
[1761434050245,0.28063317,111680.0,111670.0,0.89132391]
[1761434052049,0.28063317,111680.0,111670.0,0.53052391]
[1761434052654,0.28063317,111680.0,111670.0,0.89132391]
[1761434053054,0.28063317,111680.0,111670.0,0.53052391]
[1761434053257,0.28063317,111680.0,111670.0,0.89132391]
[1761434054159,0.28063317,111680.0,111670.0,0.53052391]
[1761434054353,0.28063317,111680.0,111670.0,0.89132391]
[1761434054547,0.28063317,111680.0,111670.0,0.53052391]
[1761434054753,0.28063317,111680.0,111670.0,0.89132391]
[1761434055549,0.28063317,111680.0,111670.0,0.53052391]
[1761434055852,0.28063317,111680.0,111670.0,0.89132391]
[1761434056158,0.28063317,111680.0,111670.0,0.53052391]
[1761434056857,0.28063317,111680.0,111670.0,0.89132391]
[1761434057752,0.28063317,111680.0,111670.0,0.53052391]
[1761434058357,0.28063317,111680.0,111670.0,0.89132391]
[1761434059153,0.24839753,111680.0,111670.0,0.89132391]
[1761434061052,0.24839753,111680.0,111670.0,0.53052391]
[1761434061249,0.24839753,111680.0,111670.0,0.89132391]
[1761434062761,0.24839753,111680.0,111670.0,0.53052391]
[1761434063162,0.24839753,111680.0,111670.0,0.89132391]
[1761434066261,0.24839753,111680.0,111670.0,0.53052391]
[1761434066461,0.24839753,111680.0,111670.0,0.89132391]
[1761434066664,0.28063317,111680.0,111670.0,0.89132391]
[1761434067262,0.28063317,111680.0,111670.0,0.53052391]
[1761434067467,0.28063317,111680.0,111670.0,0.89132391]
[1761434068068,0.28063317,111680.0,111670.0,0.53052391]
[1761434068268,0.28063317,111680.0,111670.0,0.89132391]
[1761434068571,0.28063317,111680.0,111670.0,0.53052391]
[1761434068770,0.28063317,111680.0,111670.0,0.89132391]
[1761434069472,0.28063317,111680.0,111670.0,0.53052391]
[1761434069672,0.28063317,111680.0,111670.0,0.89132391]
[1761434070069,0.28063317,111680.0,111670.0,0.53052391]
[1761434070274,0.28063317,111680.0,111670.0,0.89132391]
[1761434070872,0.24839753,111680.0,111670.0,0.89132391]
[1761434072675,0.24839753,111680.0,111670.0,0.53052391]
[1761434072972,0.24839753,111680.0,111670.0,0.89132391]
[1761434073170,0.24839753,111680.0,111670.0,0.53052391]
[1761434073772,0.24839753,111680.0,111670.0,0.89132391]
[1761434074669,0.24839753,111680.0,111670.0,0.53052391]
[1761434074876,0.28063317,111680.0,111670.0,0.53052391]
[1761434075065,0.28063317,111680.0,111670.0,0.89132391]
[1761434075769,0.04581362,111680.0,111670.0,1.02903253]
[1761434075972,0.0564183,111690.0,111680.0,0.1469314]
[1761434076171,0.04585625,111690.0,111680.0,0.66654531]
[1761434077077,0.04685625,111690.0,111680.0,0.66654531]
[1761434077272,0.02267359,111690.0,111680.0,0.71471453]
[1761434078474,0.001,111690.0,111680.0,0.87352844]
[1761434078681,0.04731266,111710.0,111700.0,0.0574]
[1761434078866,0.09050256,111710.0,111700.0,0.89077391]
[1761434079469,0.09050256,111710.0,111700.0,0.74107421]
[1761434079781,0.09150256,111710.0,111700.0,0.89988812]
[1761434080983,0.25031647,111710.0,111700.0,0.89988812]
[1761434083282,0.22613381,111710.0,111700.0,0.89988812]
[1761434095391,0.22613381,111710.0,111700.0,0.53908812]
[1761434095588,0.22613381,111710.0,111700.0,0.89988812]
[1761434095790,0.22613381,111710.0,111700.0,0.53908812]
[1761434095985,0.22613381,111710.0,111700.0,0.89988812]
[1761434097994,0.22613381,111710.0,111700.0,0.53908812]
[1761434098194,0.22613381,111710.0,111700.0,0.89988812]
[1761434098892,0.22613381,111710.0,111700.0,0.53908812]
[1761434099089,0.25031647,111710.0,111700.0,0.89988812]
[1761434101696,0.09150256,111710.0,111700.0,0.89988812]
[1761434101895,0.25031647,111710.0,111700.0,0.89988812]
[1761434102995,0.25031647,111710.0,111700.0,0.53908812]
[1761434103201,0.25031647,111710.0,111700.0,0.89988812]
[1761434104292,0.25031647,111710.0,111700.0,0.53908812]
[1761434104494,0.25031647,111710.0,111700.0,0.89988812]
[1761434104699,0.09150256,111710.0,111700.0,0.74107421]
[1761434105298,0.1237382,111710.0,111700.0,0.74107421]
[1761434106497,0.1237382,111710.0,111700.0,0.38027421]
[1761434106801,0.1237382,111710.0,111700.0,0.74107421]
[1761434107895,0.0790582,111710.0,111700.0,0.88217081]
[1761434108098,0.04682256,111710.0,111700.0,0.88217081]
[1761434108598,0.04682256,111710.0,111700.0,0.97168621]
[1761434111293,0.04682256,111710.0,111700.0,1.33248621]
[1761434111599,0.0226399,111710.0,111700.0,1.33248621]
[1761434120106,0.0226399,111710.0,111700.0,0.61088621]
[1761434120603,0.0226399,111710.0,111700.0,1.33248621]
[1761434126204,0.0226399,111710.0,111700.0,0.61088621]
[1761434126414,0.0226399,111710.0,111700.0,1.33248621]
[1761434127610,0.0226399,111710.0,111700.0,1.24297081]
[1761434127802,0.0226399,111710.0,111700.0,1.33248621]
[1761434132012,0.0437799,111710.0,111700.0,1.24297081]
[1761434132512,0.0427799,111710.0,111700.0,1.24297081]
[1761434134217,0.0216399,111710.0,111700.0,1.24297081]
[1761434137514,0.0216399,111710.0,111700.0,1.29114003]
[1761434138415,0.0216399,111710.0,111700.0,1.24297081]
[1761434138619,0.0216399,111710.0,111700.0,0.52137081]
[1761434138819,0.0216399,111710.0,111700.0,1.24297081]
[1761434139917,0.0216399,111710.0,111700.0,0.52137081]
[1761434140119,0.0216399,111710.0,111700.0,1.24297081]
[1761434141222,0.0216399,111710.0,111700.0,0.52137081]
[1761434141419,0.0216399,111710.0,111700.0,1.24297081]
[1761434142219,0.0216399,111710.0,111700.0,0.52137081]
[1761434142519,0.0216399,111710.0,111700.0,1.24297081]
[1761434144723,0.0216399,111710.0,111700.0,0.52137081]
[1761434144927,0.0216399,111710.0,111700.0,1.24297081]
[1761434145119,0.0216399,111710.0,111700.0,0.52137081]
[1761434145421,0.0216399,111710.0,111700.0,1.24297081]
[1761434145718,0.0216399,111710.0,111700.0,0.52137081]
[1761434145920,0.0216399,111710.0,111700.0,1.24297081]
[1761434146724,0.0216399,111710.0,111700.0,0.52137081]
[1761434146914,0.0216399,111710.0,111700.0,1.24297081]
[1761434147321,0.0216399,111710.0,111700.0,0.52137081]
[1761434147620,0.0216399,111710.0,111700.0,1.24297081]
[1761434148216,0.0216399,111710.0,111700.0,1.29114003]
[1761434148613,0.0216399,111710.0,111700.0,0.56954003]
[1761434148813,0.0216399,111710.0,111700.0,1.29114003]
[1761434149628,0.0654299,111710.0,111700.0,1.29114003]
[1761434152730,0.08961256,111710.0,111700.0,1.14996343]
[1761434155131,0.08961256,111710.0,111700.0,1.29106003]
[1761434156329,0.0654299,111710.0,111700.0,1.29106003]
[1761434157135,0.0654299,111710.0,111700.0,1.14996343]
[1761434158433,0.0435499,111710.0,111700.0,1.14996343]
[1761434158629,0.0216399,111710.0,111700.0,1.14996343]
[1761434161634,0.0435499,111710.0,111700.0,1.14996343]
[1761434162030,0.0650799,111710.0,111700.0,1.14996343]
[1761434162234,0.08926256,111710.0,111700.0,1.14996343]
[1761434164737,0.24798988,111710.0,111700.0,1.30869075]
[1761434165836,0.24798988,111710.0,111700.0,1.26052153]
[1761434168040,0.24798988,111710.0,111700.0,1.10179421]
[1761434168230,0.26107988,111710.0,111700.0,1.10179421]
[1761434168429,0.26107988,111710.0,111700.0,0.74099421]
[1761434168933,0.24798988,111710.0,111700.0,0.74099421]
[1761434169132,0.24798988,111710.0,111700.0,0.89972153]
[1761434169936,0.08926256,111710.0,111700.0,0.74099421]
[1761434170238,0.24798988,111710.0,111700.0,0.89972153]
[1761434171544,0.24798988,111710.0,111700.0,0.53892153]
[1761434171838,0.24798988,111710.0,111700.0,0.89972153]
[1761434172634,0.24798988,111710.0,111700.0,0.53892153]
[1761434172839,0.24798988,111710.0,111700.0,0.89972153]
[1761434173443,0.24798988,111710.0,111700.0,0.74099421]
[1761434173635,0.24798988,111710.0,111700.0,0.89972153]
[1761434175746,0.24798988,111710.0,111700.0,0.74099421]
[1761434176042,0.24798988,111710.0,111700.0,0.89972153]
[1761434178334,0.24798988,111710.0,111700.0,0.53892153]
[1761434178643,0.24798988,111710.0,111700.0,0.89972153]
[1761434180941,0.24798988,111710.0,111700.0,0.74099421]
[1761434181138,0.24798988,111710.0,111700.0,0.89972153]
[1761434182045,0.24798988,111710.0,111700.0,0.74099421]
[1761434182849,0.24798988,111710.0,111700.0,0.42731421]
[1761434183043,0.24798988,111710.0,111700.0,0.74099421]
[1761434183237,0.24798988,111710.0,111700.0,0.38019421]
[1761434183439,0.24798988,111710.0,111700.0,0.74099421]
[1761434185045,0.24798988,111710.0,111700.0,0.89972153]
[1761434187148,0.24798988,111710.0,111700.0,0.58604153]
[1761434187344,0.24798988,111710.0,111700.0,0.89972153]
[1761434187737,0.24798988,111710.0,111700.0,0.53892153]
[1761434188039,0.24798988,111710.0,111700.0,0.89972153]
[1761434189543,0.24798988,111710.0,111700.0,0.53892153]
[1761434189746,0.24798988,111710.0,111700.0,0.89972153]
[1761434190943,0.24798988,111710.0,111700.0,0.74099421]
[1761434191148,0.24798988,111710.0,111700.0,0.89972153]
[1761434191737,0.26107988,111710.0,111700.0,0.74099421]
[1761434191940,0.26107988,111710.0,111700.0,0.89972153]
[1761434192752,0.26107988,111710.0,111700.0,0.58604153]
[1761434192953,0.26107988,111710.0,111700.0,0.89972153]
[1761434194148,0.26107988,111710.0,111700.0,0.74099421]
[1761434199854,0.26107988,111710.0,111700.0,0.38019421]
[1761434200058,0.26107988,111710.0,111700.0,0.74099421]
[1761434202054,0.26107988,111710.0,111700.0,0.38019421]
[1761434202460,0.26107988,111710.0,111700.0,0.74099421]
[1761434202755,0.24798988,111710.0,111700.0,0.74099421]
[1761434202956,0.24798988,111710.0,111700.0,0.89972153]
[1761434204157,0.24798988,111710.0,111700.0,0.74099421]
[1761434204357,0.24798988,111710.0,111700.0,0.89972153]
[1761434212466,0.24798988,111710.0,111700.0,0.53892153]
[1761434212660,0.24798988,111710.0,111700.0,0.89972153]
[1761434217163,0.24798988,111710.0,111700.0,0.74099421]
[1761434217357,0.24798988,111710.0,111700.0,0.89972153]
[1761434224959,0.24798988,111710.0,111700.0,0.74099421]
[1761434226762,0.23036901,111710.0,111700.0,0.74099421]
[1761434229673,0.24355901,111710.0,111700.0,0.38019421]
[1761434229869,0.24355901,111710.0,111700.0,0.38015421]
[1761434230172,0.66241199,111710.0,111700.0,0.04459]
[1761434230571,0.71075577,111710.0,111700.0,0.04459]
[1761434232264,0.67852013,111710.0,111700.0,0.04459]
[1761434233066,0.68743135,111710.0,111700.0,0.04459]
[1761434233668,0.66579145,111710.0,111700.0,0.04459]
[1761434233968,0.68751652,111710.0,111700.0,0.04459]
[1761434234374,0.71970674,111710.0,111700.0,0.04459]
[1761434237568,0.35890674,111710.0,111700.0,0.04459]
[1761434237866,0.71970674,111710.0,111700.0,0.04459]
[1761434239174,0.35890674,111710.0,111700.0,0.04459]
[1761434239373,0.71970674,111710.0,111700.0,0.04459]
[1761434239879,0.71079552,111710.0,111700.0,0.04459]
[1761434241880,0.34999552,111710.0,111700.0,0.04459]
[1761434242073,0.71079552,111710.0,111700.0,0.04459]
[1761434243478,0.66245174,111710.0,111700.0,0.04459]
[1761434246585,0.30165174,111710.0,111700.0,0.04459]
[1761434246881,0.66245174,111710.0,111700.0,0.04459]
[1761434248081,0.71079552,111710.0,111700.0,0.04459]
[1761434249189,0.34999552,111710.0,111700.0,0.04459]
[1761434249378,0.35893087,111710.0,111700.0,0.04459]
[1761434249693,0.71973087,111710.0,111700.0,0.04459]
[1761434250086,0.35893087,111710.0,111700.0,0.04459]
[1761434250286,0.71973087,111710.0,111700.0,0.04459]
[1761434251085,0.67138709,111710.0,111700.0,0.04459]
[1761434252686,0.67138709,111710.0,111700.0,0.0228]
[1761434252882,0.67138709,111710.0,111690.0,0.35791]
[1761434253080,0.5832718,111700.0,111690.0,0.3669535]
[1761434253280,0.64499687,111700.0,111690.0,0.3669535]
[1761434254890,0.64499687,111700.0,111690.0,0.3689535]
[1761434257193,0.31638709,111700.0,111690.0,0.3689535]
[1761434257596,0.67718709,111700.0,111690.0,0.3689535]
[1761434257892,0.31638709,111700.0,111690.0,0.3689535]
[1761434258194,0.67718709,111700.0,111690.0,0.3689535]
[1761434258895,0.31638709,111700.0,111690.0,0.3689535]
[1761434259097,0.67718709,111700.0,111690.0,0.3689535]
[1761434259392,0.29225174,111700.0,111690.0,0.3689535]
[1761434259696,0.65305174,111700.0,111690.0,0.3689535]
[1761434261094,0.70139552,111700.0,111690.0,0.3689535]
[1761434261297,0.34059552,111700.0,111690.0,0.3689535]
[1761434261489,0.70139552,111700.0,111690.0,0.3689535]
[1761434263097,0.34059552,111700.0,111690.0,0.3689535]
[1761434263297,0.70139552,111700.0,111690.0,0.3689535]
[1761434263886,0.34059552,111700.0,111690.0,0.3689535]
[1761434264084,0.70139552,111700.0,111690.0,0.3689535]
[1761434264290,0.34059552,111700.0,111690.0,0.3689535]
[1761434266000,0.70139552,111700.0,111690.0,0.3689535]
[1761434267897,0.34059552,111700.0,111690.0,0.3689535]
[1761434268097,0.70139552,111700.0,111690.0,0.3689535]
[1761434268401,0.34059552,111700.0,111690.0,0.3689535]
[1761434268800,0.70139552,111700.0,111690.0,0.3689535]
[1761434269903,0.34059552,111700.0,111690.0,0.3689535]
[1761434270803,0.70139552,111700.0,111690.0,0.3689535]
[1761434270999,0.34059552,111700.0,111690.0,0.3689535]
[1761434271700,0.70139552,111700.0,111690.0,0.3689535]
[1761434271895,0.70139552,111700.0,111690.0,0.35999]
[1761434273202,0.34059552,111700.0,111690.0,0.35999]
[1761434273399,0.70139552,111700.0,111690.0,0.04627]
[1761434273703,0.70139552,111700.0,111690.0,0.35999]
[1761434274304,0.70139552,111700.0,111690.0,0.04627]
[1761434274506,0.70139552,111700.0,111690.0,0.35999]
[1761434275395,0.70139552,111700.0,111690.0,0.04627]
[1761434275595,0.70139552,111700.0,111690.0,0.35999]
[1761434276105,0.34059552,111700.0,111690.0,0.35999]
[1761434276496,0.70139552,111700.0,111690.0,0.35999]
[1761434276896,0.70139552,111700.0,111690.0,0.04627]
[1761434277106,0.70139552,111700.0,111690.0,0.35999]
[1761434279802,0.70139552,111700.0,111690.0,0.33751]
[1761434280104,0.70139552,111700.0,111690.0,0.31572]
[1761434280306,0.65305174,111700.0,111690.0,0.31572]
[1761434280506,0.65305174,111700.0,111690.0,0.33751]
[1761434280703,0.65305174,111700.0,111690.0,0.35967]
[1761434283706,0.65305174,111700.0,111690.0,0.002]
[1761434283905,0.65305174,111700.0,111670.0,0.45450383]
[1761434283906,0.05784,111680.0,111670.0,0.45450383]
[1761434284208,0.25485319,111680.0,111670.0,0.36826549]
[1761434284398,0.23067152,111680.0,111670.0,0.36826549]
[1761434284593,0.25485319,111680.0,111670.0,0.36826549]
[1761434285007,0.64789542,111680.0,111670.0,0.35919]
[1761434285202,0.62371375,111680.0,111670.0,0.04547]
[1761434285509,0.62371375,111680.0,111670.0,0.35931]
[1761434285906,0.62371375,111680.0,111670.0,0.36031]
[1761434286107,0.62371375,111680.0,111670.0,0.04647]
[1761434286309,0.632535,111680.0,111670.0,0.04647]
[1761434286511,0.65668489,111680.0,111670.0,0.04647]
[1761434286701,0.67445329,111680.0,111670.0,0.04647]
[1761434288312,0.6743954,111680.0,111670.0,0.04647]
[1761434288708,0.6743954,111680.0,111670.0,0.001]
[1761434289502,0.64215317,111680.0,111670.0,0.001]
[1761434289910,0.66557415,111680.0,111670.0,0.001]
[1761434290309,0.30477415,111680.0,111670.0,0.001]
[1761434290502,0.66557415,111680.0,111670.0,0.001]
[1761434291312,0.63333192,111680.0,111670.0,0.001]
[1761434291713,0.27253192,111680.0,111670.0,0.001]
[1761434291916,0.63333192,111680.0,111670.0,0.001]
[1761434292709,0.66557415,111680.0,111650.0,0.01314]
[1761434292917,0.66557415,111680.0,111650.0,0.04547]
[1761434292918,0.21671485,111660.0,111650.0,0.04547]
[1761434293214,0.23838925,111660.0,111650.0,0.35935]
[1761434293808,0.23838925,111660.0,111650.0,0.04547]
[1761434294207,0.59918925,111660.0,111650.0,0.35935]
[1761434294611,0.59918925,111660.0,111650.0,0.05442511]
[1761434294810,0.59918925,111660.0,111650.0,0.36930511]
[1761434295113,0.59918925,111660.0,111650.0,0.37430511]
[1761434297313,0.59918925,111660.0,111650.0,0.06042511]
[1761434297508,0.59918925,111660.0,111650.0,0.37430511]
[1761434298222,0.60918925,111660.0,111650.0,0.06042511]
[1761434298403,0.60918925,111660.0,111650.0,0.37430511]
[1761434298602,0.60918925,111660.0,111650.0,0.38767511]
[1761434300109,0.24838925,111660.0,111650.0,0.38767511]
[1761434300612,0.22511925,111660.0,111650.0,0.54654996]
[1761434301210,0.22511925,111660.0,111650.0,0.38767511]
[1761434301612,0.23838925,111660.0,111650.0,0.38767511]